[Event "Titled Tuesday Blitz February 21 Early 2023"]
[White "Papasimakopoulos, Alexandros"]
[Black "Delorme, Axel"]
[WhiteFideId "4244125"]
[BlackFideId "632023"]
[WhiteElo "2401"]
[BlackElo "2483"]
[Result "1/2-1/2"]
[Round "02"]
[TimeControl "180+2"]
[Date "2023.02.21"]
[WhiteClock "0:01:22"]
[BlackClock "0:00:12"]

1. d4 {[%clk 0:03:00]}  d5 {[%clk 0:02:57]} 2. c4 {[%clk 0:03:01]}  e6 {[%clk 0:02:57]} 3. Nc3 {[%clk 0:03:01]}  c5 {[%clk 0:02:57]} 4. cxd5 {[%clk 0:03:01]}  exd5 {[%clk 0:02:57]} 5. Nf3 {[%clk 0:03:01]}  Nc6 {[%clk 0:02:58]} 6. Bg5 {[%clk 0:03:02]}  f6 {[%clk 0:02:58]} 7. Bh4 {[%clk 0:03:01]}  g5 {[%clk 0:02:57]} 8. Bg3 {[%clk 0:03:01]}  g4 {[%clk 0:02:58]} 9. Nd2 {[%clk 0:02:58]}  cxd4 {[%clk 0:02:58]} 10. Nb5 {[%clk 0:02:57]}  Kf7 {[%clk 0:02:59]} 11. Qb3 {[%clk 0:02:44]}  Nge7 {[%clk 0:02:53]} 12. e3 {[%clk 0:02:36]}  dxe3 {[%clk 0:02:51]} 13. fxe3 {[%clk 0:02:36]}  a6 {[%clk 0:02:19]} 14. Nc7 {[%clk 0:02:36]}  Ra7 {[%clk 0:02:16]} 15. Rc1 {[%clk 0:02:25]}  b5 {[%clk 0:01:46]} 16. Nxd5 {[%clk 0:02:20]}  Qxd5 {[%clk 0:01:45]} 17. Qxd5+ {[%clk 0:02:21]}  Nxd5 {[%clk 0:01:45]} 18. Rxc6 {[%clk 0:02:21]}  Bd7 {[%clk 0:01:17]} 19. Rc1 {[%clk 0:02:19]}  Nxe3 {[%clk 0:01:06]} 20. Bf2 {[%clk 0:02:14]}  Bh6 {[%clk 0:00:52]} 21. Ne4 {[%clk 0:01:54]}  Nxf1 {[%clk 0:00:47]} 22. Bxa7 {[%clk 0:01:47]}  Bxc1 {[%clk 0:00:46]} 23. Rxf1 {[%clk 0:01:47]}  Bxb2 {[%clk 0:00:41]} 24. Rf2 {[%clk 0:01:47]}  Be5 {[%clk 0:00:40]} 25. Rd2 {[%clk 0:01:48]}  Bf5 {[%clk 0:00:37]} 26. Nd6+ {[%clk 0:01:47]}  Bxd6 {[%clk 0:00:36]} 27. Rxd6 {[%clk 0:01:48]}  Re8+ {[%clk 0:00:36]} 28. Kf2 {[%clk 0:01:47]}  Re6 {[%clk 0:00:34]} 29. Rd7+ {[%clk 0:01:43]}  Re7 {[%clk 0:00:34]} 30. Rxe7+ {[%clk 0:01:43]}  Kxe7 {[%clk 0:00:35]} 31. Ke3 {[%clk 0:01:40]}  Be6 {[%clk 0:00:33]} 32. a3 {[%clk 0:01:40]}  Bd5 {[%clk 0:00:31]} 33. g3 {[%clk 0:01:40]}  Ke6 {[%clk 0:00:32]} 34. Kd4 {[%clk 0:01:40]}  a5 {[%clk 0:00:26]} 35. Bb6 {[%clk 0:01:33]}  b4 {[%clk 0:00:26]} 36. a4 {[%clk 0:01:33]}  Bc6 {[%clk 0:00:21]} 37. Bxa5 {[%clk 0:01:31]}  b3 {[%clk 0:00:21]} 38. Bc3 {[%clk 0:01:30]}  Bxa4 {[%clk 0:00:21]} 39. Ke4 {[%clk 0:01:31]}  Bc6+ {[%clk 0:00:20]} 40. Kd4 {[%clk 0:01:28]}  h5 {[%clk 0:00:19]} 41. Bb2 {[%clk 0:01:28]}  f5 {[%clk 0:00:17]} 42. Ke3 {[%clk 0:01:24]}  Be4 {[%clk 0:00:16]} 43. Bc3 {[%clk 0:01:24]}  Bc2 {[%clk 0:00:15]} 44. Bb2 {[%clk 0:01:24]}  Kd5 {[%clk 0:00:16]} 45. Ba1 {[%clk 0:01:23]}  Kc4 {[%clk 0:00:15]} 46. Bb2 {[%clk 0:01:24]}  Be4 {[%clk 0:00:13]} 47. Ba1 {[%clk 0:01:23]}  Kb4 {[%clk 0:00:13]} 48. Bb2 {[%clk 0:01:24]}  Bc2 {[%clk 0:00:13]} 49. Kf4 {[%clk 0:01:23]}  Be4 {[%clk 0:00:12]} 50. Ke3 {[%clk 0:01:23]}  Bc2 {[%clk 0:00:13]} 51. Kf4 {[%clk 0:01:22]}  Kc4 {[%clk 0:00:12]} 52. Ke3 {[%clk 0:01:22]}  Be4 {[%clk 0:00:13]} 53. Ba1 {[%clk 0:01:22]}  Bc2 {[%clk 0:00:12]} 54. Bb2 {[%clk 0:01:22]} 1/2-1/2


[Site "https://www.chess.com"]

[Event "Titled Tuesday Blitz February 21 Early 2023"]
[White "Lizak, Peter"]
[Black "Mushini Ajay"]
[WhiteFideId "731595"]
[BlackFideId "35066188"]
[WhiteElo "2411"]
[BlackElo "2310"]
[Result "1-0"]
[Round "02"]
[TimeControl "180+2"]
[Date "2023.02.21"]
[WhiteClock "0:00:21"]
[BlackClock "0:00:19"]

1. d4 {[%clk 0:02:59]}  Nf6 {[%clk 0:02:57]} 2. Nc3 {[%clk 0:02:57]}  d5 {[%clk 0:02:57]} 3. Bf4 {[%clk 0:02:49]}  Bf5 {[%clk 0:02:54]} 4. f3 {[%clk 0:02:49]}  e6 {[%clk 0:02:54]} 5. g4 {[%clk 0:02:49]}  Bg6 {[%clk 0:02:53]} 6. h4 {[%clk 0:02:49]}  h5 {[%clk 0:02:53]} 7. g5 {[%clk 0:02:49]}  Nfd7 {[%clk 0:02:53]} 8. e3 {[%clk 0:02:49]}  c5 {[%clk 0:02:53]} 9. Nb5 {[%clk 0:02:48]}  Na6 {[%clk 0:02:52]} 10. c3 {[%clk 0:02:46]}  cxd4 {[%clk 0:02:50]} 11. exd4 {[%clk 0:02:45]}  Be7 {[%clk 0:02:44]} 12. Bd3 {[%clk 0:02:45]}  Bxd3 {[%clk 0:02:43]} 13. Qxd3 {[%clk 0:02:43]}  g6 {[%clk 0:02:43]} 14. Nh3 {[%clk 0:02:40]}  O-O {[%clk 0:02:39]} 15. Bg3 {[%clk 0:02:31]}  Re8 {[%clk 0:02:17]} 16. Nf4 {[%clk 0:02:28]}  Nf8 {[%clk 0:02:04]} 17. Kf2 {[%clk 0:02:22]}  Rc8 {[%clk 0:01:52]} 18. Rae1 {[%clk 0:02:15]}  Nc7 {[%clk 0:01:45]} 19. Nxc7 {[%clk 0:02:04]}  Rxc7 {[%clk 0:01:43]} 20. Re2 {[%clk 0:01:52]}  Bd6 {[%clk 0:01:41]} 21. Rhe1 {[%clk 0:01:42]}  Rc8 {[%clk 0:01:35]} 22. Kg2 {[%clk 0:01:26]}  Qa5 {[%clk 0:01:20]} 23. b4 {[%clk 0:01:18]}  Qc7 {[%clk 0:01:10]} 24. Qd2 {[%clk 0:00:47]}  Qxc3 {[%clk 0:00:54]} 25. Qxc3 {[%clk 0:00:37]}  Rxc3 {[%clk 0:00:52]} 26. Nxd5 {[%clk 0:00:38]}  Bxg3 {[%clk 0:00:41]} 27. Kxg3 {[%clk 0:00:35]}  Rec8 {[%clk 0:00:31]} 28. Ne7+ {[%clk 0:00:27]}  Kg7 {[%clk 0:00:29]} 29. Nxc8 {[%clk 0:00:27]}  Rxc8 {[%clk 0:00:28]} 30. d5 {[%clk 0:00:28]}  Rd8 {[%clk 0:00:22]} 31. dxe6 {[%clk 0:00:28]}  Nxe6 {[%clk 0:00:22]} 32. Rxe6 {[%clk 0:00:25]}  fxe6 {[%clk 0:00:22]} 33. Rxe6 {[%clk 0:00:25]}  Rd7 {[%clk 0:00:20]} 34. a4 {[%clk 0:00:26]}  Kf7 {[%clk 0:00:17]} 35. Rf6+ {[%clk 0:00:25]}  Kg7 {[%clk 0:00:18]} 36. a5 {[%clk 0:00:26]}  Rc7 {[%clk 0:00:18]} 37. Rd6 {[%clk 0:00:23]}  Re7 {[%clk 0:00:18]} 38. b5 {[%clk 0:00:23]}  Kf7 {[%clk 0:00:18]} 39. Kf4 {[%clk 0:00:23]}  Kg7 {[%clk 0:00:18]} 40. b6 {[%clk 0:00:20]}  axb6 {[%clk 0:00:18]} 41. axb6 {[%clk 0:00:21]}  Kf7 {[%clk 0:00:18]} 42. Rd5 {[%clk 0:00:19]}  Re6 {[%clk 0:00:18]} 43. Rd7+ {[%clk 0:00:19]}  Re7 {[%clk 0:00:17]} 44. Rxe7+ {[%clk 0:00:20]}  Kxe7 {[%clk 0:00:18]} 45. Ke5 {[%clk 0:00:20]}  Kf7 {[%clk 0:00:19]} 46. Kd6 {[%clk 0:00:20]}  Kg7 {[%clk 0:00:18]} 47. Ke7 {[%clk 0:00:20]}  Kg8 {[%clk 0:00:18]} 48. Kf6 {[%clk 0:00:20]}  Kh7 {[%clk 0:00:19]} 49. Kf7 {[%clk 0:00:20]}  Kh8 {[%clk 0:00:19]} 50. Kxg6 {[%clk 0:00:21]} 1-0


[Site "https://www.chess.com"]

[Event "Titled Tuesday Blitz February 21 Early 2023"]
[White "Miszler, Levente"]
[Black "Starozhilov, Leonid"]
[WhiteFideId "763276"]
[BlackFideId "14106752"]
[WhiteElo "2271"]
[BlackElo "2313"]
[Result "0-1"]
[Round "02"]
[TimeControl "180+2"]
[Date "2023.02.21"]
[WhiteClock "0:00:20"]
[BlackClock "0:01:30"]

1. Nf3 {[%clk 0:02:50]}  d5 {[%clk 0:02:59]} 2. c4 {[%clk 0:02:49]}  e6 {[%clk 0:02:59]} 3. g3 {[%clk 0:02:48]}  Nf6 {[%clk 0:02:58]} 4. Bg2 {[%clk 0:02:48]}  Be7 {[%clk 0:02:59]} 5. O-O {[%clk 0:02:48]}  O-O {[%clk 0:02:58]} 6. d4 {[%clk 0:02:47]}  a6 {[%clk 0:02:57]} 7. b3 {[%clk 0:02:45]}  dxc4 {[%clk 0:02:49]} 8. bxc4 {[%clk 0:02:46]}  c5 {[%clk 0:02:50]} 9. Bb2 {[%clk 0:02:44]}  Nc6 {[%clk 0:02:48]} 10. Na3 {[%clk 0:02:39]}  cxd4 {[%clk 0:02:43]} 11. Nc2 {[%clk 0:02:31]}  e5 {[%clk 0:02:43]} 12. Rb1 {[%clk 0:01:42]}  Bg4 {[%clk 0:02:37]} 13. h3 {[%clk 0:01:40]}  Bh5 {[%clk 0:02:34]} 14. g4 {[%clk 0:01:35]}  Bg6 {[%clk 0:02:34]} 15. Nh4 {[%clk 0:01:36]}  Be4 {[%clk 0:02:34]} 16. Bxe4 {[%clk 0:01:35]}  Nxe4 {[%clk 0:02:34]} 17. Nf3 {[%clk 0:01:33]}  Rc8 {[%clk 0:02:24]} 18. Ba3 {[%clk 0:01:30]}  Bxa3 {[%clk 0:02:14]} 19. Nxa3 {[%clk 0:01:30]}  Nc3 {[%clk 0:02:15]} 20. Qb3 {[%clk 0:01:25]}  Nxb1 {[%clk 0:02:14]} 21. Rxb1 {[%clk 0:01:26]}  e4 {[%clk 0:02:11]} 22. Nd2 {[%clk 0:01:23]}  e3 {[%clk 0:02:07]} 23. Nf3 {[%clk 0:01:21]}  exf2+ {[%clk 0:02:06]} 24. Kxf2 {[%clk 0:01:22]}  Re8 {[%clk 0:02:05]} 25. Qxb7 {[%clk 0:01:19]}  d3 {[%clk 0:02:04]} 26. exd3 {[%clk 0:01:09]}  Qxd3 {[%clk 0:02:00]} 27. Re1 {[%clk 0:01:07]}  Nd4 {[%clk 0:01:45]} 28. Qd5 {[%clk 0:00:28]}  Rxe1 {[%clk 0:01:31]} 29. Nxe1 {[%clk 0:00:22]}  Qe2+ {[%clk 0:01:30]} 30. Kg3 {[%clk 0:00:20]}  Qxe1+ {[%clk 0:01:30]} 0-1


[Site "https://www.chess.com"]

[Event "Titled Tuesday Blitz February 21 Early 2023"]
[White "Can, Melih Kaan"]
[Black "Alex_Sahakyan2006"]
[WhiteFideId "6317383"]
[WhiteElo "2069"]
[BlackElo "2664"]
[Result "0-1"]
[Round "02"]
[TimeControl "180+2"]
[Date "2023.02.21"]
[WhiteClock "0:00:18"]
[BlackClock "0:01:07"]

1. d4 {[%clk 0:03:00]}  Nf6 {[%clk 0:02:57]} 2. c4 {[%clk 0:02:59]}  c5 {[%clk 0:02:58]} 3. d5 {[%clk 0:02:58]}  b5 {[%clk 0:02:58]} 4. cxb5 {[%clk 0:02:58]}  a6 {[%clk 0:02:58]} 5. bxa6 {[%clk 0:02:59]}  g6 {[%clk 0:02:58]} 6. Nc3 {[%clk 0:02:58]}  Bg7 {[%clk 0:02:58]} 7. e4 {[%clk 0:02:59]}  O-O {[%clk 0:02:59]} 8. Nf3 {[%clk 0:02:55]}  Qa5 {[%clk 0:02:58]} 9. Nd2 {[%clk 0:02:43]}  Bxa6 {[%clk 0:02:53]} 10. Bxa6 {[%clk 0:02:43]}  Qxa6 {[%clk 0:02:54]} 11. Qe2 {[%clk 0:02:43]}  d6 {[%clk 0:02:54]} 12. Qxa6 {[%clk 0:02:37]}  Nxa6 {[%clk 0:02:54]} 13. O-O {[%clk 0:02:24]}  Rfb8 {[%clk 0:02:49]} 14. Rb1 {[%clk 0:02:05]}  Nb4 {[%clk 0:02:47]} 15. a3 {[%clk 0:01:59]}  Nd3 {[%clk 0:02:46]} 16. Nc4 {[%clk 0:01:54]}  Ng4 {[%clk 0:02:21]} 17. Be3 {[%clk 0:01:33]}  Nxe3 {[%clk 0:02:18]} 18. fxe3 {[%clk 0:01:34]}  Nxb2 {[%clk 0:02:18]} 19. Nxb2 {[%clk 0:01:22]}  Bxc3 {[%clk 0:02:16]} 20. Nc4 {[%clk 0:01:22]}  Rxb1 {[%clk 0:02:06]} 21. Rxb1 {[%clk 0:01:23]}  Ra4 {[%clk 0:02:06]} 22. Rb8+ {[%clk 0:01:14]}  Kg7 {[%clk 0:02:06]} 23. Nb6 {[%clk 0:01:13]}  Rxa3 {[%clk 0:02:06]} 24. Nc8 {[%clk 0:01:14]}  Bf6 {[%clk 0:02:05]} 25. Kf2 {[%clk 0:01:12]}  Ra2+ {[%clk 0:02:05]} 26. Kf3 {[%clk 0:01:12]}  c4 {[%clk 0:02:06]} 27. Rb7 {[%clk 0:01:12]}  c3 {[%clk 0:01:59]} 28. Rc7 {[%clk 0:01:09]}  c2 {[%clk 0:01:59]} 29. Nb6 {[%clk 0:00:59]}  Ra3 {[%clk 0:01:25]} 30. Rxc2 {[%clk 0:00:53]}  Bd4 {[%clk 0:01:25]} 31. Nc4 {[%clk 0:00:53]}  Rb3 {[%clk 0:01:25]} 32. Kf2 {[%clk 0:00:48]}  Bc5 {[%clk 0:01:25]} 33. h3 {[%clk 0:00:40]}  f5 {[%clk 0:01:22]} 34. exf5 {[%clk 0:00:37]}  gxf5 {[%clk 0:01:23]} 35. Kf3 {[%clk 0:00:33]}  Rd3 {[%clk 0:01:23]} 36. Rd2 {[%clk 0:00:20]}  Rc3 {[%clk 0:01:17]} 37. Na5 {[%clk 0:00:20]}  Bxe3 {[%clk 0:01:13]} 38. Ra2 {[%clk 0:00:21]}  Bd4+ {[%clk 0:01:07]} 39. Kf4 {[%clk 0:00:19]}  Kf6 {[%clk 0:01:07]} 40. Nc6 {[%clk 0:00:18]}  Be5+ {[%clk 0:01:07]} 0-1


[Site "https://www.chess.com"]

[Event "Titled Tuesday Blitz February 21 Early 2023"]
[White "Kovacsy, Barnabas"]
[Black "Mindlin, Alon"]
[WhiteFideId "769290"]
[BlackFideId "2800071"]
[WhiteElo "2245"]
[BlackElo "2435"]
[Result "0-1"]
[Round "02"]
[TimeControl "180+2"]
[Date "2023.02.21"]
[WhiteClock "0:00:32"]
[BlackClock "0:01:12"]

1. e4 {[%clk 0:02:59]}  e5 {[%clk 0:02:59]} 2. Nf3 {[%clk 0:02:59]}  Nc6 {[%clk 0:02:58]} 3. Bb5 {[%clk 0:02:59]}  a6 {[%clk 0:02:57]} 4. Ba4 {[%clk 0:03:00]}  Nf6 {[%clk 0:02:57]} 5. O-O {[%clk 0:02:57]}  Be7 {[%clk 0:02:56]} 6. d3 {[%clk 0:02:56]}  b5 {[%clk 0:02:56]} 7. Bb3 {[%clk 0:02:56]}  d6 {[%clk 0:02:57]} 8. c3 {[%clk 0:02:56]}  O-O {[%clk 0:02:57]} 9. Nbd2 {[%clk 0:02:56]}  Be6 {[%clk 0:02:51]} 10. Re1 {[%clk 0:02:49]}  h6 {[%clk 0:02:50]} 11. Nf1 {[%clk 0:02:48]}  Re8 {[%clk 0:02:47]} 12. Ng3 {[%clk 0:02:46]}  Bf8 {[%clk 0:02:48]} 13. Bc2 {[%clk 0:02:39]}  d5 {[%clk 0:02:47]} 14. h3 {[%clk 0:02:31]}  Bc5 {[%clk 0:02:38]} 15. Be3 {[%clk 0:02:27]}  Bxe3 {[%clk 0:02:37]} 16. Rxe3 {[%clk 0:02:26]}  dxe4 {[%clk 0:02:35]} 17. dxe4 {[%clk 0:02:22]}  Qxd1+ {[%clk 0:02:34]} 18. Bxd1 {[%clk 0:02:20]}  Red8 {[%clk 0:02:30]} 19. Bc2 {[%clk 0:02:09]}  Nd7 {[%clk 0:02:24]} 20. Rd3 {[%clk 0:02:04]}  Nc5 {[%clk 0:02:22]} 21. Rxd8+ {[%clk 0:02:04]}  Rxd8 {[%clk 0:02:23]} 22. b3 {[%clk 0:02:03]}  b4 {[%clk 0:02:22]} 23. cxb4 {[%clk 0:01:55]}  Nxb4 {[%clk 0:02:21]} 24. Rd1 {[%clk 0:01:46]}  Rxd1+ {[%clk 0:02:11]} 25. Bxd1 {[%clk 0:01:44]}  Nxa2 {[%clk 0:02:06]} 26. Nxe5 {[%clk 0:01:43]}  Bxb3 {[%clk 0:02:07]} 27. Bxb3 {[%clk 0:01:43]}  Nxb3 {[%clk 0:02:07]} 28. Kf1 {[%clk 0:01:40]}  Nc3 {[%clk 0:02:07]} 29. Ke1 {[%clk 0:01:39]}  a5 {[%clk 0:02:06]} 30. Nc4 {[%clk 0:01:38]}  a4 {[%clk 0:02:05]} 31. Na3 {[%clk 0:01:30]}  c6 {[%clk 0:02:02]} 32. Ne2 {[%clk 0:01:15]}  Nb5 {[%clk 0:01:56]} 33. Nxb5 {[%clk 0:01:14]}  cxb5 {[%clk 0:01:56]} 34. Kd1 {[%clk 0:01:14]}  a3 {[%clk 0:01:42]} 35. Nc3 {[%clk 0:01:13]}  Nc5 {[%clk 0:01:38]} 36. Kc2 {[%clk 0:01:09]}  b4 {[%clk 0:01:38]} 37. Nb5 {[%clk 0:00:50]}  Nxe4 {[%clk 0:01:28]} 38. f3 {[%clk 0:00:49]}  Nc5 {[%clk 0:01:25]} 39. Nd4 {[%clk 0:00:47]}  Kh7 {[%clk 0:01:21]} 40. Kb1 {[%clk 0:00:45]}  b3 {[%clk 0:01:20]} 41. Nb5 {[%clk 0:00:45]}  a2+ {[%clk 0:01:19]} 42. Ka1 {[%clk 0:00:45]}  Kg6 {[%clk 0:01:16]} 43. Nd4 {[%clk 0:00:45]}  h5 {[%clk 0:01:16]} 44. g3 {[%clk 0:00:42]}  Kf6 {[%clk 0:01:14]} 45. h4 {[%clk 0:00:40]}  Ke5 {[%clk 0:01:12]} 46. Ne2 {[%clk 0:00:40]}  Kd5 {[%clk 0:01:12]} 47. g4 {[%clk 0:00:38]}  Kc4 {[%clk 0:01:10]} 48. gxh5 {[%clk 0:00:35]}  Kd3 {[%clk 0:01:11]} 49. Nc1+ {[%clk 0:00:32]}  Kc2 {[%clk 0:01:11]} 50. Nxb3 {[%clk 0:00:32]}  Kxb3 {[%clk 0:01:11]} 51. f4 {[%clk 0:00:33]}  Ka3 {[%clk 0:01:11]} 52. f5 {[%clk 0:00:32]}  Nb3# {[%clk 0:01:12]} 0-1


[Site "https://www.chess.com"]

[Event "Titled Tuesday Blitz February 21 Early 2023"]
[White "Shuvalova, Polina"]
[Black "Koridze, Lile"]
[WhiteFideId "24171760"]
[BlackFideId "13612514"]
[WhiteElo "2484"]
[BlackElo "2191"]
[Result "1-0"]
[Round "02"]
[TimeControl "180+2"]
[Date "2023.02.21"]
[WhiteClock "0:00:07"]
[BlackClock "0:00:44"]

1. d4 {[%clk 0:03:00]}  Nf6 {[%clk 0:02:58]} 2. c4 {[%clk 0:03:01]}  e6 {[%clk 0:02:57]} 3. Bf4 {[%clk 0:03:00]}  d5 {[%clk 0:02:57]} 4. cxd5 {[%clk 0:02:58]}  exd5 {[%clk 0:02:57]} 5. e3 {[%clk 0:02:55]}  c6 {[%clk 0:02:56]} 6. Nc3 {[%clk 0:02:50]}  Bd6 {[%clk 0:02:55]} 7. Bxd6 {[%clk 0:02:48]}  Qxd6 {[%clk 0:02:56]} 8. Bd3 {[%clk 0:02:48]}  O-O {[%clk 0:02:56]} 9. Nge2 {[%clk 0:02:43]}  Re8 {[%clk 0:02:56]} 10. O-O {[%clk 0:02:42]}  Nbd7 {[%clk 0:02:56]} 11. Qd2 {[%clk 0:02:42]}  Nf8 {[%clk 0:02:56]} 12. Rae1 {[%clk 0:02:43]}  Ng6 {[%clk 0:02:42]} 13. f3 {[%clk 0:02:42]}  Qd7 {[%clk 0:02:35]} 14. Kh1 {[%clk 0:02:37]}  Qd6 {[%clk 0:02:28]} 15. e4 {[%clk 0:02:25]}  dxe4 {[%clk 0:02:26]} 16. fxe4 {[%clk 0:02:26]}  Ng4 {[%clk 0:02:13]} 17. e5 {[%clk 0:02:18]}  Qd8 {[%clk 0:02:08]} 18. h3 {[%clk 0:02:07]}  Qh4 {[%clk 0:02:08]} 19. Ng1 {[%clk 0:02:00]}  c5 {[%clk 0:01:22]} 20. Nf3 {[%clk 0:01:50]}  Qh5 {[%clk 0:01:22]} 21. Bxg6 {[%clk 0:01:01]}  hxg6 {[%clk 0:01:21]} 22. dxc5 {[%clk 0:00:49]}  Nh6 {[%clk 0:01:17]} 23. Kh2 {[%clk 0:00:36]}  Ng4+ {[%clk 0:01:12]} 24. Kg1 {[%clk 0:00:29]}  Nxe5 {[%clk 0:01:11]} 25. Nxe5 {[%clk 0:00:24]}  Rxe5 {[%clk 0:01:12]} 26. Rxe5 {[%clk 0:00:19]}  Qxe5 {[%clk 0:01:12]} 27. Qd8+ {[%clk 0:00:19]}  Kh7 {[%clk 0:01:12]} 28. Rxf7 {[%clk 0:00:09]}  Qxc5+ {[%clk 0:01:06]} 29. Kh1 {[%clk 0:00:09]}  Qh5 {[%clk 0:01:04]} 30. Rf4 {[%clk 0:00:07]}  g5 {[%clk 0:00:49]} 31. Rf8 {[%clk 0:00:08]}  Kg6 {[%clk 0:00:46]} 32. Qe8+ {[%clk 0:00:07]}  Kh6 {[%clk 0:00:44]} 33. Rh8# {[%clk 0:00:07]} 1-0


[Site "https://www.chess.com"]

[Event "Titled Tuesday Blitz February 21 Early 2023"]
[White "Malek, Jan"]
[Black "Corredor Castellanos, Camilo"]
[WhiteFideId "21864080"]
[BlackFideId "4425871"]
[WhiteElo "2370"]
[BlackElo "1957"]
[Result "1-0"]
[Round "02"]
[TimeControl "180+2"]
[Date "2023.02.21"]
[WhiteClock "0:00:49"]
[BlackClock "0:00:10"]

1. c4 {[%clk 0:03:00]}  g6 {[%clk 0:02:58]} 2. d4 {[%clk 0:03:00]}  Bg7 {[%clk 0:02:59]} 3. Nc3 {[%clk 0:02:59]}  c5 {[%clk 0:02:56]} 4. d5 {[%clk 0:02:56]}  a6 {[%clk 0:02:53]} 5. e4 {[%clk 0:02:55]}  b5 {[%clk 0:02:53]} 6. Nf3 {[%clk 0:02:54]}  b4 {[%clk 0:02:34]} 7. Ne2 {[%clk 0:02:53]}  Nf6 {[%clk 0:02:33]} 8. Ng3 {[%clk 0:02:53]}  d6 {[%clk 0:02:33]} 9. h4 {[%clk 0:02:52]}  h6 {[%clk 0:02:31]} 10. Bd3 {[%clk 0:02:51]}  Bg4 {[%clk 0:02:30]} 11. Be2 {[%clk 0:02:47]}  Nbd7 {[%clk 0:02:30]} 12. Nd2 {[%clk 0:02:39]}  Ne5 {[%clk 0:01:56]} 13. f3 {[%clk 0:02:30]}  Bc8 {[%clk 0:01:50]} 14. h5 {[%clk 0:02:30]}  g5 {[%clk 0:01:49]} 15. Ndf1 {[%clk 0:02:29]}  e6 {[%clk 0:01:42]} 16. Ne3 {[%clk 0:02:29]}  O-O {[%clk 0:01:38]} 17. a4 {[%clk 0:02:22]}  Re8 {[%clk 0:01:35]} 18. b3 {[%clk 0:02:19]}  a5 {[%clk 0:01:28]} 19. Bb2 {[%clk 0:02:19]}  exd5 {[%clk 0:01:17]} 20. cxd5 {[%clk 0:02:16]}  g4 {[%clk 0:01:00]} 21. f4 {[%clk 0:02:08]}  Ned7 {[%clk 0:01:00]} 22. Nef5 {[%clk 0:01:55]}  Nf8 {[%clk 0:00:49]} 23. Nxg7 {[%clk 0:01:53]}  Kxg7 {[%clk 0:00:50]} 24. Bxg4 {[%clk 0:01:52]}  Kh7 {[%clk 0:00:34]} 25. Bxc8 {[%clk 0:01:36]}  Rxc8 {[%clk 0:00:34]} 26. Qc2 {[%clk 0:01:28]}  Nxd5 {[%clk 0:00:30]} 27. e5+ {[%clk 0:01:16]}  Kg8 {[%clk 0:00:25]} 28. Nf5 {[%clk 0:01:13]}  Re6 {[%clk 0:00:18]} 29. O-O-O {[%clk 0:01:09]}  Nc3 {[%clk 0:00:14]} 30. Bxc3 {[%clk 0:01:06]}  bxc3 {[%clk 0:00:14]} 31. Nxd6 {[%clk 0:01:04]}  Rb8 {[%clk 0:00:12]} 32. Qxc3 {[%clk 0:01:03]}  Qb6 {[%clk 0:00:11]} 33. Rh3 {[%clk 0:00:58]}  Qb4 {[%clk 0:00:10]} 34. Rg3+ {[%clk 0:00:57]}  Kh8 {[%clk 0:00:10]} 35. Nxf7+ {[%clk 0:00:56]}  Kh7 {[%clk 0:00:10]} 36. Qd3+ {[%clk 0:00:52]}  Ng6 {[%clk 0:00:10]} 37. Rxg6 {[%clk 0:00:49]} 1-0


[Site "https://www.chess.com"]

[Event "Titled Tuesday Blitz February 21 Early 2023"]
[White "Lauridsen, Jesper Morch"]
[Black "Souleidis, Georgios"]
[WhiteFideId "1401890"]
[BlackFideId "4206827"]
[WhiteElo "2309"]
[BlackElo "2419"]
[Result "1-0"]
[Round "02"]
[TimeControl "180+2"]
[Date "2023.02.21"]
[WhiteClock "0:00:13"]
[BlackClock "0:00:04"]

1. e4 {[%clk 0:03:00]}  c5 {[%clk 0:02:59]} 2. Nf3 {[%clk 0:03:00]}  e6 {[%clk 0:02:59]} 3. d4 {[%clk 0:03:01]}  cxd4 {[%clk 0:02:59]} 4. Nxd4 {[%clk 0:03:01]}  Nf6 {[%clk 0:03:00]} 5. Nc3 {[%clk 0:03:00]}  Nc6 {[%clk 0:03:00]} 6. Ndb5 {[%clk 0:02:59]}  Bc5 {[%clk 0:02:59]} 7. Bf4 {[%clk 0:02:58]}  O-O {[%clk 0:02:59]} 8. Bc7 {[%clk 0:02:57]}  Qe7 {[%clk 0:02:58]} 9. Bd6 {[%clk 0:02:57]}  Bxd6 {[%clk 0:02:59]} 10. Qxd6 {[%clk 0:02:57]}  Qd8 {[%clk 0:02:59]} 11. O-O-O {[%clk 0:02:49]}  a6 {[%clk 0:03:00]} 12. Nd4 {[%clk 0:02:44]}  Ne7 {[%clk 0:02:59]} 13. Nb3 {[%clk 0:02:30]}  b5 {[%clk 0:02:37]} 14. Bd3 {[%clk 0:02:14]}  Ne8 {[%clk 0:02:34]} 15. Qg3 {[%clk 0:02:11]}  Bb7 {[%clk 0:02:11]} 16. e5 {[%clk 0:02:04]}  Rc8 {[%clk 0:02:03]} 17. Qh4 {[%clk 0:01:59]}  Ng6 {[%clk 0:01:36]} 18. Qxd8 {[%clk 0:01:57]}  Rxd8 {[%clk 0:01:37]} 19. Bxg6 {[%clk 0:01:45]}  fxg6 {[%clk 0:01:37]} 20. f3 {[%clk 0:01:44]}  Nc7 {[%clk 0:01:23]} 21. Nc5 {[%clk 0:01:42]}  Bc6 {[%clk 0:01:21]} 22. N3e4 {[%clk 0:01:40]}  Rf5 {[%clk 0:01:14]} 23. Rd6 {[%clk 0:01:27]}  Rxe5 {[%clk 0:01:09]} 24. Rhd1 {[%clk 0:01:26]}  Rd5 {[%clk 0:00:46]} 25. R1xd5 {[%clk 0:01:09]}  Bxd5 {[%clk 0:00:46]} 26. Nxd7 {[%clk 0:00:57]}  Kf7 {[%clk 0:00:31]} 27. Ne5+ {[%clk 0:00:45]}  Ke7 {[%clk 0:00:31]} 28. Rxd8 {[%clk 0:00:38]}  Kxd8 {[%clk 0:00:32]} 29. Ng5 {[%clk 0:00:33]}  h6 {[%clk 0:00:30]} 30. Nh3 {[%clk 0:00:22]}  g5 {[%clk 0:00:29]} 31. Nf2 {[%clk 0:00:19]}  Ke7 {[%clk 0:00:29]} 32. Nfd3 {[%clk 0:00:17]}  Kd6 {[%clk 0:00:29]} 33. b3 {[%clk 0:00:16]}  a5 {[%clk 0:00:28]} 34. c4 {[%clk 0:00:17]}  bxc4 {[%clk 0:00:27]} 35. bxc4 {[%clk 0:00:17]}  Bb7 {[%clk 0:00:25]} 36. Kd2 {[%clk 0:00:17]}  Na6 {[%clk 0:00:19]} 37. Kc3 {[%clk 0:00:16]}  Nc5 {[%clk 0:00:07]} 38. Nf7+ {[%clk 0:00:15]}  Kc6 {[%clk 0:00:06]} 39. Nd8+ {[%clk 0:00:16]}  Kb6 {[%clk 0:00:02]} 40. Nxc5 {[%clk 0:00:15]}  Bxf3 {[%clk 0:00:02]} 41. gxf3 {[%clk 0:00:13]}  Kxc5 {[%clk 0:00:02]} 42. Nxe6+ {[%clk 0:00:13]}  Kd6 {[%clk 0:00:03]} 43. Nxg7 {[%clk 0:00:13]}  Ke5 {[%clk 0:00:03]} 44. c5 {[%clk 0:00:13]}  Kd5 {[%clk 0:00:03]} 45. Nf5 {[%clk 0:00:13]}  Kxc5 {[%clk 0:00:03]} 46. Nxh6 {[%clk 0:00:13]}  Kd5 {[%clk 0:00:04]} 47. Nf7 {[%clk 0:00:13]} 1-0


[Site "https://www.chess.com"]

[Event "Titled Tuesday Blitz February 21 Early 2023"]
[White "Megalios, Konstantinos"]
[Black "Thiel, Thomas"]
[WhiteFideId "4238044"]
[BlackFideId "4615964"]
[WhiteElo "2372"]
[BlackElo "2234"]
[Result "1-0"]
[Round "02"]
[TimeControl "180+2"]
[Date "2023.02.21"]
[WhiteClock "0:01:53"]
[BlackClock "0:02:30"]

1. e4 {[%clk 0:03:00]}  d5 {[%clk 0:02:59]} 2. exd5 {[%clk 0:03:00]}  Nf6 {[%clk 0:02:59]} 3. Bb5+ {[%clk 0:02:59]}  Nbd7 {[%clk 0:02:57]} 4. d4 {[%clk 0:02:57]}  Nxd5 {[%clk 0:02:54]} 5. Nf3 {[%clk 0:02:56]}  c6 {[%clk 0:02:54]} 6. Be2 {[%clk 0:02:53]}  g6 {[%clk 0:02:54]} 7. O-O {[%clk 0:02:53]}  Bg7 {[%clk 0:02:54]} 8. c4 {[%clk 0:02:50]}  Nc7 {[%clk 0:02:53]} 9. Nc3 {[%clk 0:02:48]}  O-O {[%clk 0:02:53]} 10. Be3 {[%clk 0:02:46]}  Nf6 {[%clk 0:02:52]} 11. h3 {[%clk 0:02:44]}  Bf5 {[%clk 0:02:51]} 12. Qb3 {[%clk 0:02:29]}  Qd6 {[%clk 0:02:40]} 13. Rad1 {[%clk 0:02:09]}  b5 {[%clk 0:02:38]} 14. c5 {[%clk 0:02:05]}  Qd7 {[%clk 0:02:36]} 15. Ne5 {[%clk 0:02:05]}  Qe8 {[%clk 0:02:34]} 16. Bf3 {[%clk 0:02:00]}  Nfd5 {[%clk 0:02:33]} 17. Nxc6 {[%clk 0:01:53]}  Qxc6 {[%clk 0:02:30]} 18. Nxd5 {[%clk 0:01:53]} 1-0


[Site "https://www.chess.com"]